[Event "Nis GM 2019"]
[Site "Nis"]
[Date "2019.12.04"]
[Round "5.1"]
[White "Miljkovic, Miroslav D"]
[Black "Ivic, Velimir"]
[Result "1/2-1/2"]
[ECO "D85"]
[WhiteElo "2496"]
[BlackElo "2531"]
[Annotator "ChessBase"]
[PlyCount "202"]
[EventDate "2019.11.30"]
[EventType "tourn"]
[EventCountry "SRB"]
[SourceTitle "playchess.com"]
[Source "ChessBase"]
[SourceQuality "1"]
[TimeControl "40/5400+30:1800+30"]

1. d4 {[%emt 0:00:00]} Nf6 {[%emt 0:00:00]} 2. c4 {[%emt 0:00:00]} g6 {[%emt 0:00:00]} 3. Nc3 {[%emt 0:00:00]} d5 {[%emt 0:00:00]} 4. Nf3 {[%emt 0:01:17]} Bg7 {[%emt 0:00:00]} 5. cxd5 {[%emt 0:00:18]} Nxd5 {[%emt 0:00:05]} 6. e4 {[%emt 0:00:07]} Nxc3 {[%emt 0:00:04]} 7. bxc3 {[%emt 0:00:08]} c5 {[%emt 0:00:03]} 8. Be3 {[%emt 0:00:23]} Qa5 {[%emt 0:00:10]} 9. Qd2 {[%emt 0:00:19]} O-O {[%emt 0:00:17]} 10. Rc1 {[%emt 0:00:16]} Nd7 {[%emt 0:00:14]} 11. Be2 {[%emt 0:08:43]} Nf6 {[%emt 0:14:25]} 12. e5 {[%emt 0:09:02]} Ne4 {[%emt 0:08:11]} 13. Qb2 {[%emt 0:00:15]} cxd4 {[%emt 0:01:00]} 14. Bxd4 {[%emt 0:00:08]} b6 {[%emt 0:19:06]} 15. Qb4 {[%emt 0:11:35]} Qxb4 {[%emt 0:01:05]} 16. cxb4 {[%emt 0:00:06]} Be6 {[%emt 0:17:39]} 17. Ba6 {[%emt 0:03:05]} Rad8 {[%emt 0:02:29]} 18. Be3 {[%emt 0:12:29]} Bxa2 {[%emt 0:07:35]} 19. O-O {[%emt 0:08:28]} f5 {[%emt 0:05:03]} 20. Bf4 {[%emt 0:07:03]} e6 {[%emt 0:03:17]} 21. h4 {[%emt 0:01:42]} h6 {[%emt 0:00:30]} 22. Rc7 {[%emt 0:01:04]} Rf7 {[%emt 0:01:56]} 23. Rxf7 {[%emt 0:01:07]} Kxf7 {[%emt 0:00:03]} 24. Rc1 {[%emt 0:00:10]} Kg8 {[%emt 0:06:47]} 25. Be3 {[%emt 0:10:35]} Bb3 {[%emt 0:09:25]} 26. Be2 {[%emt 0:05:23]} Rf8 {[%emt 0:02:45]} 27. Rc7 {[%emt 0:08:53]} Rf7 {[%emt 0:00:02]} 28. Rc8+ {[%emt 0:00:17]} Rf8 {[%emt 0:00:02]} 29. Rc7 {[%emt 0:00:07]} Rf7 {[%emt 0:00:03]} 30. Rc8+ {[%emt 0:00:07]} Kh7 {[%emt 0:00:15]} 31. Bb5 {[%emt 0:04:25]} Re7 {[%emt 0:02:20]} 32. h5 {[%emt 0:01:21]} gxh5 {[%emt 0:00:25]} 33. Bf4 {[%emt 0:01:09]} a5 {[%emt 0:00:39]} 34. bxa5 {[%emt 0:02:28]} bxa5 {[%emt 0:00:01]} 35. Ra8 {[%emt 0:00:29]} Bd5 {[%emt 0:01:02]} 36. Rxa5 {[%emt 0:00:09]} Rb7 {[%emt 0:00:29]} 37. Nd4 {[%emt 0:01:32]} Bf8 {[%emt 0:00:27]} 38. Bd3 {[%emt 0:01:21]} Nc5 {[%emt 0:00:32]} 39. Bc2 {[%emt 0:00:49]} Kg8 {[%emt 0:00:30]} 40. Be3 {[%emt 0:00:00]} Rg7 {[%emt 0:00:00]} 41. f3 {[%emt 0:01:14]} Nb7 {[%emt 0:07:31]} 42. Ra8 {[%emt 0:04:54]} Nc5 {[%emt 0:07:06]} 43. Rc8 {[%emt 0:02:33]} Nd7 {[%emt 0:01:37]} 44. Bxh6 {[%emt 0:02:43]} Rh7 {[%emt 0:01:03]} 45. Ba4 {[%emt 0:03:24]} Rxh6 {[%emt 0:01:43]} 46. Bxd7 {[%emt 0:00:06]} h4 {[%emt 0:01:53]} 47. Kh2 {[%emt 0:01:06]} Rg6 {[%emt 0:02:34]} 48. Ne2 {[%emt 0:02:55]} Rg7 {[%emt 0:00:28]} 49. Rd8 {[%emt 0:03:39]} h3 {[%emt 0:05:25]} 50. gxh3 {[%emt 0:02:30]} Kf7 {[%emt 0:01:13]} 51. Nf4 {[%emt 0:01:56]} Ke7 {[%emt 0:02:41]} 52. Re8+ {[%emt 0:02:59]} Kxd7 {[%emt 0:00:08]} 53. Rxf8 {[%emt 0:00:05]} Bxf3 {[%emt 0:01:04]} 54. Rf6 {[%emt 0:00:58]} Bd5 {[%emt 0:02:09]} 55. Ng6 {[%emt 0:00:11]} Kc6 {[%emt 0:01:05]} 56. Kg3 {[%emt 0:02:43]} Kc5 {[%emt 0:00:01]} 57. h4 {[%emt 0:00:31]} Kd4 {[%emt 0:00:49]} 58. Kf4 {[%emt 0:00:21]} Ra7 {[%emt 0:00:38]} 59. Nf8 {[%emt 0:00:56]} Ra1 {[%emt 0:00:46]} 60. Nxe6+ {[%emt 0:01:04]} Bxe6 {[%emt 0:00:02]} 61. Rxe6 {[%emt 0:00:11]} Rf1+ {[%emt 0:00:10]} 62. Kg5 {[%emt 0:01:34]} f4 {[%emt 0:00:51]} 63. h5 {[%emt 0:00:12]} Ke4 {[%emt 0:00:55]} 64. Kf6 {[%emt 0:02:45]} Rh1 {[%emt 0:00:25]} 65. Kg6 {[%emt 0:00:59]} f3 {[%emt 0:00:28]} 66. Rf6 {[%emt 0:00:09]} Kxe5 {[%emt 0:00:25]} 67. Rxf3 {[%emt 0:00:04]} Rg1+ {[%emt 0:00:08]} 68. Kf7 {[%emt 0:00:54]} Rh1 {[%emt 0:00:36]} 69. Ra3 {[%emt 0:00:23]} Rf1+ {[%emt 0:00:23]} 70. Kg7 {[%emt 0:01:34]} Rg1+ {[%emt 0:00:05]} 71. Kh7 {[%emt 0:00:12]} Kf6 {[%emt 0:00:56]} 72. Ra7 {[%emt 0:00:11]} Rb1 {[%emt 0:01:01]} 73. Rg7 {[%emt 0:01:01]} Rh1 {[%emt 0:00:40]} 74. h6 {[%emt 0:00:37]} Rh2 {[%emt 0:00:10]} 75. Rg1 {[%emt 0:00:36]} Kf7 {[%emt 0:00:25]} 76. Rf1+ {[%emt 0:00:14]} Ke7 {[%emt 0:00:06]} 77. Kg7 {[%emt 0:01:10]} Rg2+ {[%emt 0:00:02]} 78. Kh7 {[%emt 0:00:32]} Ke8 {[%emt 0:00:55]} 79. Ra1 {[%emt 0:00:08]} Kf7 {[%emt 0:00:42]} 80. Ra7+ {[%emt 0:00:07]} Kf8 {[%emt 0:00:45]} 81. Rg7 {[%emt 0:00:12]} Rh2 {[%emt 0:00:31]} 82. Rg5 {[%emt 0:01:38]} Rh1 {[%emt 0:00:25]} 83. Rf5+ {[%emt 0:00:38]} Ke7 {[%emt 0:00:07]} 84. Kg7 {[%emt 0:00:18]} Rg1+ {[%emt 0:00:02]} 85. Kh8 {[%emt 0:00:05]} Rh1 {[%emt 0:00:37]} 86. h7 {[%emt 0:00:05]} Rg1 {[%emt 0:00:04]} 87. Ra5 {[%emt 0:00:13]} Kf7 {[%emt 0:00:14]} 88. Ra8 {[%emt 0:00:44]} Rg2 {[%emt 0:00:43]} 89. Rg8 {[%emt 0:00:08]} Rh2 {[%emt 0:00:21]} 90. Rg1 {[%emt 0:00:15]} Kf8 {[%emt 0:00:26]} 91. Rf1+ {[%emt 0:02:15]} Ke7 {[%emt 0:00:05]} 92. Kg7 {[%emt 0:00:06]} Rg2+ {[%emt 0:00:02]} 93. Kh6 {[%emt 0:00:10]} Rh2+ {[%emt 0:00:04]} 94. Kg6 {[%emt 0:00:02]} Rg2+ {[%emt 0:00:17]} 95. Kf5 {[%emt 0:00:03]} Rh2 {[%emt 0:00:05]} 96. Ra1 {[%emt 0:00:34]} Kf8 {[%emt 0:00:18]} 97. Ra7 {[%emt 0:01:42]} Rf2+ {[%emt 0:00:28]} 98. Kg4 {[%emt 0:00:09]} Rh2 {[%emt 0:00:04]} 99. h8=Q+ {[%emt 0:00:23]} Rxh8 {[%emt 0:00:02]} 100. Ra8+ {[%emt 0:00:05]} Kg7 {[%emt 0:00:11]} 101. Rxh8 Kxh8 1/2-1/2

[Event "Nis GM 2019"]
[Site "Nis"]
[Date "2019.12.04"]
[Round "5.3"]
[White "Radovanovic, Mihajlo"]
[Black "Dimitrov, Radoslav"]
[Result "0-1"]
[ECO "B06"]
[WhiteElo "2479"]
[BlackElo "2515"]
[Annotator "ChessBase"]
[PlyCount "70"]
[EventDate "2019.11.30"]
[EventType "tourn"]
[EventCountry "SRB"]
[SourceTitle "playchess.com"]
[Source "ChessBase"]
[SourceQuality "1"]
[TimeControl "40/5400+30:1800+30"]

1. d4 {[%emt 0:00:00]} g6 {[%emt 0:00:58]} 2. e4 {[%emt 0:01:46]} Bg7 {[%emt 0:00:06]} 3. c4 {[%emt 0:00:21]} c5 {[%emt 0:00:14]} 4. Nf3 {[%emt 0:00:54]} Nc6 {[%emt 0:00:08]} 5. d5 {[%emt 0:00:24]} Nd4 {[%emt 0:00:02]} 6. Nxd4 {[%emt 0:00:13]} cxd4 {[%emt 0:00:07]} 7. Na3 {[%emt 0:22:51]} d6 {[%emt 0:02:13]} 8. Nc2 {[%emt 0:00:09]} Qb6 {[%emt 0:00:22]} 9. Bd3 {[%emt 0:00:47]} Nf6 {[%emt 0:00:34]} 10. O-O {[%emt 0:00:17]} O-O {[%emt 0:01:15]} 11. b4 {[%emt 0:04:34]} a5 {[%emt 0:00:31]} 12. Bb2 {[%emt 0:00:33]} Nd7 {[%emt 0:07:11]} 13. a3 {[%emt 0:00:47]} e5 {[%emt 0:00:16]} 14. dxe6 {[%emt 0:05:21]} fxe6 {[%emt 0:00:01]} 15. Rb1 {[%emt 0:00:49]} e5 {[%emt 0:01:09]} 16. Bc1 {[%emt 0:03:22]} Qc7 {[%emt 0:01:17]} 17. Bd2 {[%emt 0:12:04]} Nb6 {[%emt 0:02:35]} 18. c5 {[%emt 0:07:32]} dxc5 {[%emt 0:00:17]} 19. bxa5 {[%emt 0:00:04]} Nd7 {[%emt 0:01:49]} 20. Bc4+ {[%emt 0:01:27]} Kh8 {[%emt 0:00:02]} 21. Ne1 {[%emt 0:00:47]} b6 {[%emt 0:00:39]} 22. Nd3 {[%emt 0:04:49]} bxa5 {[%emt 0:00:35]} 23. Bd5 {[%emt 0:02:07]} Ba6 {[%emt 0:00:29]} 24. Qc2 {[%emt 0:02:38]} c4 {[%emt 0:01:43]} 25. Bxa8 {[%emt 0:04:16]} Rxa8 {[%emt 0:00:03]} 26. Rfc1 {[%emt 0:01:30]} Rc8 {[%emt 0:03:59]} 27. Be1 {[%emt 0:07:56]} Qd8 {[%emt 0:03:32]} 28. Nb2 {[%emt 0:02:32]} c3 {[%emt 0:07:09]} 29. Nd3 {[%emt 0:02:36]} Nc5 {[%emt 0:03:26]} 30. Nxc5 {[%emt 0:00:11]} Rxc5 {[%emt 0:00:01]} 31. Rd1 {[%emt 0:03:36]} Qc8 {[%emt 0:00:06]} 32. Rb6 {[%emt 0:01:55]} Bh6 {[%emt 0:05:03]} 33. Rdb1 {[%emt 0:03:33]} d3 {[%emt 0:02:09]} 34. Qb3 {[%emt 0:00:38]} c2 {[%emt 0:00:29]} 35. Rb8 {[%emt 0:00:04]} cxb1=Q {[%emt 0:00:22]} 0-1

[Event "Nis GM 2019"]
[Site "Nis"]
[Date "2019.12.05"]
[Round "6.1"]
[White "Ivic, Velimir"]
[Black "Svetushkin, Dmitry"]
[Result "1-0"]
[ECO "B12"]
[WhiteElo "2531"]
[BlackElo "2547"]
[Annotator "ChessBase"]
[PlyCount "31"]
[EventDate "2019.11.30"]
[EventType "tourn"]
[EventCountry "SRB"]
[SourceTitle "playchess.com"]
[Source "ChessBase"]
[SourceQuality "1"]
[TimeControl "40/5400+30:1800+30"]

1. e4 {[%emt 0:00:00]} c6 {[%emt 0:00:00]} 2. d4 {[%emt 0:00:00]} d5 {[%emt 0:00:04]} 3. e5 {[%emt 0:00:00]} Bf5 {[%emt 0:00:25]} 4. h4 {[%emt 0:00:01]} h6 {[%emt 0:00:28]} 5. g4 {[%emt 0:00:23]} Bd7 {[%emt 0:00:08]} 6. Be3 {[%emt 0:00:53]} Qc8 {[%emt 0:03:14]} 7. Be2 {[%emt 0:00:05]} h5 {[%emt 0:00:08]} 8. gxh5 {[%emt 0:02:12]} Nh6 {[%emt 0:00:26]} 9. Nd2 {[%emt 0:15:40]} Ng4 {[%emt 0:00:42]} 10. Bf4 {[%emt 0:07:16]} Rxh5 {[%emt 0:01:34]} 11. c4 {[%emt 0:06:10]} Rh8 {[%emt 0:01:33]} 12. cxd5 {[%emt 0:04:58]} cxd5 {[%emt 0:05:34]} 13. Rc1 {[%emt 0:00:36]} Nc6 {[%emt 0:01:03]} 14. b4 {[%emt 0:01:41]} a6 {[%emt 0:01:47]} 15. a4 {[%emt 0:00:08]} b5 {[%emt 0:04:44]} 16. axb5 {[%emt 0:05:04]} 1-0

[Event "Nis GM 2019"]
[Site "Nis"]
[Date "2019.12.05"]
[Round "6.2"]
[White "Perunovic, Miodrag"]
[Black "Maksimovic, Branimir"]
[Result "1-0"]
[ECO "A57"]
[WhiteElo "2433"]
[BlackElo "2320"]
[Annotator "NA"]
[PlyCount "65"]
[EventDate "2019.11.30"]
[EventType "tourn"]
[EventCountry "SRB"]
[SourceTitle "playchess.com"]
[Source "ChessBase"]
[SourceQuality "1"]
[TimeControl "40/5400+30:1800+30"]

1. d4 {[%emt 0:07:16]} Nf6 {[%emt 0:00:30]} 2. c4 {[%emt 0:00:08]} c5 {[%emt 0:01:15]} 3. d5 {[%emt 0:00:09]} b5 {[%emt 0:00:04]} 4. Nd2 {[%emt 0:00:22]} g6 {[%emt 0:04:12]} 5. e4 {[%emt 0:01:18]} d6 {[%emt 0:00:05]} 6. b3 {[%emt 0:04:22]} Bg7 {[%emt 0:00:11]} 7. Bb2 {[%emt 0:00:09]} O-O {[%emt 0:03:58]} 8. Ngf3 {[%emt 0:08:05]} e6 {[%emt 0:07:24]} 9. Bd3 {[%emt 0:08:18]} bxc4 {[%emt 0:06:46]} 10. bxc4 {[%emt 0:00:12]} e5 {[%emt 0:08:01]} 11. O-O {[%emt 0:00:11]} Nbd7 {[%emt 0:01:14]} 12. Nb3 {[%emt 0:00:48]} Nh5 {[%emt 0:01:25]} 13. Re1 {[%emt 0:00:23]} Ndf6 {[%emt 0:04:14]} 14. Bc3 {[%emt 0:01:33]} a5 {[%emt 0:01:38]} 15. a4 {[%emt 0:05:13]} Bg4 {[%emt 0:00:33]} 16. h3 {[%emt 0:03:08]} Bxf3 {[%emt 0:00:29]} 17. Qxf3 {[%emt 0:00:02]} Nf4 {[%emt 0:01:07]} 18. Bf1 {[%emt 0:03:04]} g5 {[%emt 0:00:17]} 19. g3 {[%emt 0:02:10]} Ng6 {[%emt 0:00:05]} 20. Bd2 {[%emt 0:01:53]} Ne8 {[%emt 0:01:41]} 21. Qc3 {[%emt 0:02:20]} f5 {[%emt 0:00:24]} 22. Nxa5 {[%emt 0:02:42]} fxe4 {[%emt 0:00:47]} 23. Nc6 {[%emt 0:01:34]} Qf6 {[%emt 0:00:09]} 24. Be3 {[%emt 0:00:11]} Nf4 {[%emt 0:00:31]} 25. Qc2 {[%emt 0:06:44]} Qh6 {[%emt 0:05:40]} 26. Qxe4 {[%emt 0:04:58]} Nxh3+ {[%emt 0:05:14]} 27. Bxh3 {[%emt 0:00:10]} Qxh3 {[%emt 0:00:06]} 28. Bxg5 {[%emt 0:00:46]} Nf6 {[%emt 0:01:29]} 29. Qh4 {[%emt 0:02:44]} Qd7 {[%emt 0:01:39]} 30. a5 {[%emt 0:06:57]} e4 {[%emt 0:02:08]} 31. Ra2 {[%emt 0:02:48]} Rf7 {[%emt 0:00:21]} 32. a6 {[%emt 0:05:30]} Ng4 {[%emt 0:02:29]} 33. Rxe4 {[%emt 0:01:55]} 1-0

[Event "Nis GM 2019"]
[Site "Nis"]
[Date "2019.12.05"]
[Round "6.3"]
[White "Dimitrov, Radoslav"]
[Black "Nikolaidis, Ioannis"]
[Result "1/2-1/2"]
[ECO "A13"]
[WhiteElo "2515"]
[BlackElo "2531"]
[Annotator "ChessBase"]
[PlyCount "97"]
[EventDate "2019.11.30"]
[EventType "tourn"]
[EventCountry "SRB"]
[SourceTitle "playchess.com"]
[Source "ChessBase"]
[SourceQuality "1"]
[TimeControl "40/5400+30:1800+30"]

1. c4 {[%emt 0:00:00]} e6 {[%emt 0:01:03]} 2. Nc3 {[%emt 0:00:00]} d5 {[%emt 0:00:28]} 3. cxd5 {[%emt 0:00:00]} exd5 {[%emt 0:00:09]} 4. d4 {[%emt 0:00:01]} c6 {[%emt 0:00:45]} 5. Bf4 {[%emt 0:01:24]} Bd6 {[%emt 0:00:35]} 6. Bg3 {[%emt 0:02:02]} Nf6 {[%emt 0:05:14]} 7. Qc2 {[%emt 0:01:13]} g6 {[%emt 0:06:06]} 8. e3 {[%emt 0:00:50]} Bf5 {[%emt 0:00:17]} 9. Bd3 {[%emt 0:00:02]} Bxd3 {[%emt 0:00:09]} 10. Qxd3 {[%emt 0:00:04]} O-O {[%emt 0:01:26]} 11. Nge2 {[%emt 0:00:41]} Re8 {[%emt 0:01:51]} 12. Bh4 {[%emt 0:06:03]} Nbd7 {[%emt 0:01:23]} 13. f3 {[%emt 0:04:30]} Be7 {[%emt 0:03:30]} 14. O-O {[%emt 0:01:14]} Nf8 {[%emt 0:00:32]} 15. Rad1 {[%emt 0:03:32]} Ne6 {[%emt 0:01:09]} 16. e4 {[%emt 0:03:43]} Nh5 {[%emt 0:01:01]} 17. Bxe7 {[%emt 0:00:30]} Qxe7 {[%emt 0:01:59]} 18. e5 {[%emt 0:01:30]} f6 {[%emt 0:05:18]} 19. f4 {[%emt 0:02:37]} fxe5 {[%emt 0:06:08]} 20. dxe5 {[%emt 0:00:14]} Rf8 {[%emt 0:03:03]} 21. Qe3 {[%emt 0:03:51]} Nhg7 {[%emt 0:12:14]} 22. g4 {[%emt 0:03:02]} h5 {[%emt 0:04:09]} 23. Qd3 {[%emt 0:01:52]} Qh4 {[%emt 0:06:03]} 24. h3 {[%emt 0:02:41]} hxg4 {[%emt 0:06:38]} 25. Qxg6 {[%emt 0:00:03]} Qxh3 {[%emt 0:10:38]} 26. f5 {[%emt 0:01:08]} Qe3+ {[%emt 0:00:29]} 27. Kg2 {[%emt 0:02:43]} Qh3+ {[%emt 0:04:17]} 28. Kg1 {[%emt 0:00:04]} Qe3+ {[%emt 0:00:32]} 29. Kg2 {[%emt 0:00:02]} Qg5 {[%emt 0:06:21]} 30. Qxg5 {[%emt 0:01:56]} Nxg5 {[%emt 0:00:02]} 31. f6 {[%emt 0:04:52]} N7e6 {[%emt 0:00:39]} 32. Ng3 {[%emt 0:01:53]} Kf7 {[%emt 0:03:32]} 33. Nf5 {[%emt 0:02:14]} Rh8 {[%emt 0:00:51]} 34. Rh1 {[%emt 0:05:50]} Nh3 {[%emt 0:02:46]} 35. Nd6+ {[%emt 0:01:17]} Kg6 {[%emt 0:00:06]} 36. Kg3 {[%emt 0:03:11]} Rh5 {[%emt 0:00:28]} 37. Rde1 {[%emt 0:00:45]} Rah8 {[%emt 0:02:09]} 38. Nd1 {[%emt 0:06:40]} b6 {[%emt 0:02:16]} 39. b4 {[%emt 0:07:06]} a5 {[%emt 0:01:00]} 40. b5 {[%emt 0:00:00]} c5 {[%emt 0:00:00]} 41. Ne3 {[%emt 0:08:55]} Rxe5 {[%emt 0:04:02]} 42. f7 {[%emt 0:07:42]} Nf8 {[%emt 0:11:15]} 43. Nxg4 {[%emt 0:05:57]} Rxe1 {[%emt 0:00:03]} 44. Rxe1 {[%emt 0:00:10]} Ng5 {[%emt 0:00:06]} 45. Ne5+ {[%emt 0:05:30]} Kf6 {[%emt 0:00:28]} 46. Ne8+ {[%emt 0:01:00]} Kf5 {[%emt 0:00:55]} 47. Ng7+ {[%emt 0:00:45]} Kf6 {[%emt 0:00:12]} 48. Ne8+ {[%emt 0:00:06]} Kf5 {[%emt 0:00:07]} 49. Ng7+ {[%emt 0:00:26] Kxe5} 1/2-1/2

[Event "Nis GM 2019"]
[Site "Nis"]
[Date "2019.12.05"]
[Round "6.4"]
[White "Zajic, Milan"]
[Black "Radovanovic, Mihajlo"]
[Result "0-1"]
[ECO "A48"]
[WhiteElo "2477"]
[BlackElo "2479"]
[Annotator "ChessBase"]
[PlyCount "72"]
[EventDate "2019.11.30"]
[EventType "tourn"]
[EventCountry "SRB"]
[SourceTitle "playchess.com"]
[Source "ChessBase"]
[SourceQuality "1"]
[TimeControl "40/5400+30:1800+30"]

1. d4 {[%emt 0:00:00]} Nf6 {[%emt 0:00:00]} 2. Nf3 {[%emt 0:00:00]} g6 {[%emt 0:00:06]} 3. Bf4 {[%emt 0:00:00]} Bg7 {[%emt 0:00:09]} 4. c3 {[%emt 0:00:00]} O-O {[%emt 0:00:37]} 5. h3 {[%emt 0:00:00]} d6 {[%emt 0:02:19]} 6. e3 {[%emt 0:00:09]} Nfd7 {[%emt 0:00:30]} 7. Be2 {[%emt 0:00:08]} e5 {[%emt 0:00:07]} 8. Bh2 {[%emt 0:00:03]} Nc6 {[%emt 0:00:19]} 9. O-O {[%emt 0:00:06]} f5 {[%emt 0:00:26]} 10. b4 {[%emt 0:00:17]} a6 {[%emt 0:05:50]} 11. a4 {[%emt 0:09:53]} e4 {[%emt 0:04:53]} 12. Nfd2 {[%emt 0:11:47]} Nf6 {[%emt 0:00:32]} 13. Na3 {[%emt 0:02:51]} Ne7 {[%emt 0:04:36]} 14. b5 {[%emt 0:04:27]} g5 {[%emt 0:03:01]} 15. Qb3+ {[%emt 0:04:29]} Kh8 {[%emt 0:01:33]} 16. c4 {[%emt 0:29:19]} Ng6 {[%emt 0:05:07]} 17. bxa6 {[%emt 0:00:13]} bxa6 {[%emt 0:00:37]} 18. f3 {[%emt 0:00:27]} Bd7 {[%emt 0:04:10]} 19. fxe4 {[%emt 0:01:51]} fxe4 {[%emt 0:03:44]} 20. c5 {[%emt 0:16:41]} dxc5 {[%emt 0:05:39]} 21. dxc5 {[%emt 0:02:24]} Bxa4 {[%emt 0:04:13]} 22. Qxa4 {[%emt 0:00:46]} Qxd2 {[%emt 0:00:06]} 23. Qc2 {[%emt 0:04:56]} Qxe3+ {[%emt 0:01:08]} 24. Kh1 {[%emt 0:00:02]} Nf4 {[%emt 0:01:24]} 25. Bxa6 {[%emt 0:02:48]} N6h5 {[%emt 0:01:15]} 26. Nc4 {[%emt 0:01:11]} Ng3+ {[%emt 0:00:24]} 27. Bxg3 {[%emt 0:00:03]} Qxg3 {[%emt 0:00:07]} 28. Qxe4 {[%emt 0:01:40]} Rae8 {[%emt 0:05:54]} 29. Qf3 {[%emt 0:01:14]} Qxf3 {[%emt 0:00:22]} 30. gxf3 {[%emt 0:00:02]} Bxa1 {[%emt 0:00:11]} 31. Rxa1 {[%emt 0:00:02]} Ra8 {[%emt 0:00:50]} 32. Ra5 {[%emt 0:00:30]} Nd3 {[%emt 0:01:30]} 33. c6 {[%emt 0:01:08]} Nb4 {[%emt 0:00:06]} 34. Bb7 {[%emt 0:00:15]} Rxa5 {[%emt 0:00:06]} 35. Nxa5 {[%emt 0:00:02]} Rxf3 {[%emt 0:00:13]} 36. Kg2 {[%emt 0:00:01]} Rc3 {[%emt 0:00:14]} 0-1

[Event "Nis GM 2019"]
[Site "Nis"]
[Date "2019.12.06"]
[Round "7.1"]
[White "Djukic, Nikola"]
[Black "Ivic, Velimir"]
[Result "1/2-1/2"]
[ECO "B33"]
[WhiteElo "2507"]
[BlackElo "2531"]
[Annotator "ChessBase"]
[PlyCount "57"]
[EventDate "2019.11.30"]
[EventType "tourn"]
[EventCountry "SRB"]
[SourceTitle "playchess.com"]
[Source "ChessBase"]
[SourceQuality "1"]
[TimeControl "40/5400+30:1800+30"]

1. e4 {[%emt 0:00:00]} c5 {[%emt 0:00:00]} 2. Nf3 {[%emt 0:00:00]} Nc6 {[%emt 0:00:00]} 3. d4 {[%emt 0:00:00]} cxd4 {[%emt 0:00:00]} 4. Nxd4 {[%emt 0:00:00]} Nf6 {[%emt 0:00:00]} 5. Nc3 {[%emt 0:00:00]} e5 {[%emt 0:00:00]} 6. Ndb5 {[%emt 0:00:04]} d6 {[%emt 0:00:05]} 7. Bg5 {[%emt 0:00:06]} a6 {[%emt 0:00:05]} 8. Na3 {[%emt 0:00:07]} b5 {[%emt 0:00:04]} 9. Nd5 {[%emt 0:00:05]} Be7 {[%emt 0:00:06]} 10. Bxf6 {[%emt 0:00:07]} Bxf6 {[%emt 0:00:04]} 11. c3 {[%emt 0:00:05]} Bg5 {[%emt 0:00:12]} 12. Nc2 {[%emt 0:00:11]} Rb8 {[%emt 0:00:05]} 13. a3 {[%emt 0:10:24]} O-O {[%emt 0:01:24]} 14. Ncb4 {[%emt 0:02:34]} Bb7 {[%emt 0:05:36]} 15. Be2 {[%emt 0:04:22]} a5 {[%emt 0:07:14]} 16. Nxc6 {[%emt 0:01:13]} Bxc6 {[%emt 0:00:05]} 17. Qd3 {[%emt 0:03:06]} Kh8 {[%emt 0:18:30]} 18. Rd1 {[%emt 0:02:31]} Qd7 {[%emt 0:11:45]} 19. O-O {[%emt 0:04:03]} Qa7 {[%emt 0:01:10]} 20. Qg3 {[%emt 0:06:03]} h6 {[%emt 0:13:20]} 21. Kh1 {[%emt 0:10:52]} Qb7 {[%emt 0:14:28]} 22. Qd3 {[%emt 0:15:48]} b4 {[%emt 0:02:53]} 23. axb4 {[%emt 0:10:21]} axb4 {[%emt 0:00:29]} 24. cxb4 {[%emt 0:00:41]} Bxd5 {[%emt 0:00:10]} 25. Qxd5 {[%emt 0:00:07]} Qxd5 {[%emt 0:00:42]} 26. Rxd5 {[%emt 0:00:05]} Rxb4 {[%emt 0:00:04]} 27. Bd3 {[%emt 0:03:41]} Rxb2 {[%emt 0:06:40]} 28. Rxd6 {[%emt 0:00:06]} Rd8 {[%emt 0:09:42]} 29. Rxd8+ {[%emt 0:00:11]} 1/2-1/2

[Event "Nis GM 2019"]
[Site "Nis"]
[Date "2019.12.06"]
[Round "7.4"]
[White "Maksimovic, Branimir"]
[Black "Dimitrov, Radoslav"]
[Result "0-1"]
[ECO "B02"]
[WhiteElo "2320"]
[BlackElo "2515"]
[Annotator "ChessBase"]
[PlyCount "78"]
[EventDate "2019.11.30"]
[EventType "tourn"]
[EventCountry "SRB"]
[SourceTitle "playchess.com"]
[Source "ChessBase"]
[SourceQuality "1"]
[TimeControl "40/5400+30:1800+30"]

1. e4 {[%emt 0:00:00]} Nf6 {[%emt 0:03:23]} 2. d3 {[%emt 0:02:20]} d5 {[%emt 0:00:43]} 3. Nd2 {[%emt 0:00:14]} c5 {[%emt 0:00:46]} 4. Ngf3 {[%emt 0:00:53]} Nc6 {[%emt 0:00:07]} 5. g3 {[%emt 0:00:28]} Bg4 {[%emt 0:02:11]} 6. Bg2 {[%emt 0:01:00]} e6 {[%emt 0:00:29]} 7. O-O {[%emt 0:00:23]} Be7 {[%emt 0:00:07]} 8. Re1 {[%emt 0:06:45]} O-O {[%emt 0:00:23]} 9. h3 {[%emt 0:00:44]} Bh5 {[%emt 0:00:02]} 10. b3 {[%emt 0:07:37]} dxe4 {[%emt 0:07:12]} 11. dxe4 {[%emt 0:00:12]} Bxf3 {[%emt 0:00:19]} 12. Qxf3 {[%emt 0:06:08]} Nd7 {[%emt 0:00:37]} 13. Bb2 {[%emt 0:03:35]} Nde5 {[%emt 0:10:58]} 14. Bxe5 {[%emt 0:01:58]} Nxe5 {[%emt 0:01:32]} 15. Qe2 {[%emt 0:04:30]} Qc7 {[%emt 0:03:54]} 16. f4 {[%emt 0:01:54]} Nc6 {[%emt 0:00:10]} 17. c3 {[%emt 0:04:51]} Qa5 {[%emt 0:03:07]} 18. e5 {[%emt 0:06:14]} Qxc3 {[%emt 0:00:47]} 19. Bxc6 {[%emt 0:00:06]} bxc6 {[%emt 0:00:10]} 20. Ne4 {[%emt 0:00:06]} Qb4 {[%emt 0:02:15]} 21. Rac1 {[%emt 0:12:53]} Rad8 {[%emt 0:03:20]} 22. Rc4 {[%emt 0:00:04]} Qb6 {[%emt 0:00:14]} 23. g4 {[%emt 0:02:13]} Rd5 {[%emt 0:02:28]} 24. Rf1 {[%emt 0:05:36]} Rfd8 {[%emt 0:00:51]} 25. Qf2 {[%emt 0:00:34]} Qc7 {[%emt 0:01:44]} 26. Re1 {[%emt 0:06:20]} Rd3 {[%emt 0:01:41]} 27. Kg2 {[%emt 0:00:56]} R8d5 {[%emt 0:00:43]} 28. Re2 {[%emt 0:00:14]} Qd8 {[%emt 0:00:41]} 29. g5 {[%emt 0:00:50]} R5d4 {[%emt 0:00:11]} 30. Re3 {[%emt 0:05:23]} Rd1 {[%emt 0:02:20]} 31. Re1 {[%emt 0:01:28]} Rxe1 {[%emt 0:05:11]} 32. Qxe1 {[%emt 0:00:05]} Qd5 {[%emt 0:00:15]} 33. Qe2 {[%emt 0:03:24]} f5 {[%emt 0:07:16]} 34. gxf6 {[%emt 0:00:22]} gxf6 {[%emt 0:00:01]} 35. exf6 {[%emt 0:01:05]} Bxf6 {[%emt 0:00:01]} 36. Kh2 {[%emt 0:02:53]} Kf7 {[%emt 0:00:32]} 37. Ng5+ {[%emt 0:05:50]} Bxg5 {[%emt 0:03:03]} 38. Qh5+ {[%emt 0:00:06]} Kg7 {[%emt 0:04:06]} 39. Rxd4 {[%emt 0:03:30]} Bxf4+ {[%emt 0:00:14]} 0-1

[Event "Nis GM 2019"]
[Site "Nis"]
[Date "2019.12.06"]
[Round "7.5"]
[White "Svetushkin, Dmitry"]
[Black "Perunovic, Miodrag"]
[Result "1/2-1/2"]
[ECO "C18"]
[WhiteElo "2547"]
[BlackElo "2433"]
[Annotator "ChessBase"]
[PlyCount "25"]
[EventDate "2019.11.30"]
[EventType "tourn"]
[EventCountry "SRB"]
[SourceTitle "playchess.com"]
[Source "ChessBase"]
[SourceQuality "1"]
[TimeControl "40/5400+30:1800+30"]

1. e4 {[%emt 0:04:02]} e6 {[%emt 0:08:02]} 2. d4 {[%emt 0:00:06]} d5 {[%emt 0:00:08]} 3. Nc3 {[%emt 0:00:07]} Bb4 {[%emt 0:01:18]} 4. e5 {[%emt 0:00:11]} c5 {[%emt 0:00:07]} 5. a3 {[%emt 0:00:06]} Bxc3+ {[%emt 0:00:15]} 6. bxc3 {[%emt 0:00:15]} Qa5 {[%emt 0:01:54]} 7. Bd2 {[%emt 0:00:20]} Qa4 {[%emt 0:00:03]} 8. Nf3 {[%emt 0:00:12]} b6 {[%emt 0:00:09]} 9. Bd3 {[%emt 0:00:33]} Ba6 {[%emt 0:01:10]} 10. O-O {[%emt 0:00:27]} Ne7 {[%emt 0:04:04]} 11. Re1 {[%emt 0:02:16]} Bxd3 {[%emt 0:00:08]} 12. cxd3 {[%emt 0:00:07]} Qxd1 {[%emt 0:00:06]} 13. Rexd1 {[%emt 0:00:08]} 1/2-1/2